Cogmind - Beta 13 @@@ ROGUE MODE // 2024.04.16 @ 12:06:26 Player: BagelsSniperWolf Result: Destroyed by Y-45 Defender with Beam Rifle Performance ------------- Evolutions (2) 1000 Regions Visited (4) 800 Robots Destroyed (48) 240 Value Destroyed (1309) 1309 Prototype IDs (6) 120 Alien Tech Used (0) 0 Bonus (430) 430 TOTAL SCORE: 3899 Bonus ------- High Alert Combat Kills 66 Follower Combat Kills 377 Friendly Fire -13 Cogmind --------- Core Integrity 0/550 Matter 253/300 Energy 124/125 System Corruption 1% Temperature Cool (9) Movement Treading (320) Ox2 Location -8/Materials Parts ------- > --- POWER (2) -------- Light Ion Engine > --- PROPULSION (3) --- Light Treads Aluminum Leg > --- UTILITY (4) ------ High-capacity Storage Unit Improved Targeting Computer Hacking Suite > --- WEAPON (2) ------- High-powered Shotgun > --- INVENTORY (20) --- Particle Gun Particle Gun Peak State ------------ > --- POWER ------------ Light Ion Engine Light Nuclear Core > --- PROPULSION ------- Aluminum Leg Aluminum Leg Wheel > --- UTILITY ---------- Heat Sink High-capacity Storage Unit Improved Targeting Computer Hacking Suite > --- WEAPON ----------- Beam Rifle High-powered Shotgun > --- INVENTORY -------- Particle Gun Particle Gun [Rating: 19] Favorites ----------- Power Light Ion Engine Engine Light Ion Engine Power Core Light Nuclear Core Propulsion Aluminum Leg Treads Light Treads Leg Aluminum Leg Wheel Wheel Flight Unit Flight Unit Utility Improved Targeting Computer Device Heat Sink Storage Small Storage Unit Processor Improved Targeting Computer Hackware Hacking Suite Protection Light Armor Plating Weapon Heavy Assault Rifle Energy Gun Medium Laser Ballistic Gun Heavy Assault Rifle Ballistic Cannon Assault Cannon Launcher Rocket Launcher Build | -11 -10 -9 -9 -8 ------- Run | Yrd Mat Mat Sto Mat Slots Evolved 4 | . . 2 . 2 Power 1 | . . 1 . . Propulsion 1 | . . . . 1 Utility 2 | . . 1 . 1 Weapon . | . . . . . Parts Attached 62 | 5 8 11 15 23 Power 15 | 1 1 5 5 3 Engine 14 | 1 1 5 5 2 Core 1 | . . . . 1 Reactor . | . . . . . Propulsion 19 | 2 3 2 2 10 Treads 1 | . . . . 1 Leg 8 | . . 2 2 4 Wheel 8 | 2 3 . . 3 Hover . | . . . . . Flight 2 | . . . . 2 Utility 8 | 1 1 1 2 3 Device 1 | . . . . 1 Storage 3 | 1 1 . . 1 Processor 2 | . . 1 1 . Hackware 1 | . . . . 1 Protection 1 | . . . 1 . Artifact . | . . . . . Weapon 20 | 1 3 3 6 7 Energy Gun 5 | . 3 1 . 1 Energy Cannon . | . . . . . Ballistic Gun 13 | 1 . 2 6 4 Ballistic Cannon 1 | . . . . 1 Launcher 1 | . . . . 1 Special Weapon . | . . . . . Impact Weapon . | . . . . . Slashing Weapon . | . . . . . Piercing Weapon . | . . . . . Special Melee Weapon . | . . . . . Unidentified Prototypes . | . . . . . Parts Lost 30 | . 2 5 4 19 Power 6 | . 1 . 1 4 Propulsion 11 | . 1 2 . 8 Utility 3 | . . . 2 1 Weapon 10 | . . 3 1 6 Highest Loss Streak 6 | . 2 5 3 6 To Critical Strikes 1 | . . 1 . . Average Slot Usage (%) 88 | . 88 93 96 70 Engine 16 | . 13 19 22 6 Leg 12 | . . 1 21 8 Wheel 8 | . 26 16 . 7 Storage 13 | . 20 22 11 9 Processor 10 | . . 10 16 9 Hackware 2 | . . . . 8 Protection 1 | . . . 3 . Energy Gun 5 | . 19 18 . 1 Ballistic Gun 14 | . 7 3 21 10 Naked Turns . | . . . . . Heaviest Build 56 | 9 18 23 24 56 Greatest Support 30 | 20 20 20 20 30 Greatest Overweight (x) 14 | . 1 1 1 14 Average Overweight (x) . | . . . . 1 Largest Inventory Capacity 20 | 8 8 8 8 20 Average Capacity 10 | 7 8 8 8 19 Most Carried 9 | 5 8 8 8 9 Average Carried 5 | 2 5 7 5 5 Final Capacity 20 | 8 8 8 8 20 Final Carried 7 | 5 7 4 7 2 Class Distribution -------------------- 41% | Scavenger-Mutant 39% | Mutant 18% | Commander-Mutant Dominant Class ---------------- Mutant | -10/Materials Scavenger-Mutant | -9/Materials Scavenger-Mutant | -9/Storage Scavenger-Mutant | -8/Materials Resources | -11 -10 -9 -9 -8 ----------- Run | Yrd Mat Mat Sto Mat Matter Collected 1272 | 250 91 102 333 496 Remotely . | . . . . . Salvage Created 1416 | . 253 199 364 600 Parts 101 | . 16 9 32 44 Haulers Intercepted . | . . . . . Recyclers Shooed . | . . . . . Parts Field Recycled . | . . . . . Retrieved Matter . | . . . . . Parts Self-Destructed . | . . . . . Prevented . | . . . . . Kills | -11 -10 -9 -9 -8 ------- Run | Yrd Mat Mat Sto Mat Combat Hostiles Destroyed 42 | . 6 9 7 20 Guns 36 | . 6 9 7 14 Cannons 6 | . . . . 6 Classes Destroyed 7 | . 4 1 1 1 Worker 1 | . . . 1 . Builder 2 | . 1 . . 1 Watcher 3 | . 2 . . 1 Swarmer 19 | . 3 7 . 9 Grunt 14 | . 3 . 3 8 Sentry 7 | . . 2 4 1 Hunter 2 | . . . . 2 Best Kill Streak 6 | . 6 3 2 4 Combat Bots Only 4 | . 3 3 2 4 Max Kills in Single Turn 2 | . 2 1 1 1 Gunslinging . | . . . . . Exploded . | . . . . . Melee . | . . . . . Uniques/NPCs Destroyed . | . . . . . Combat | -11 -10 -9 -9 -8 -------- Run | Yrd Mat Mat Sto Mat Hostile Shots Fired 377 | . 44 79 35 219 Missed 95 | . 12 17 7 59 Damage Taken 3551 | . 345 536 607 2063 Core 925 | . 117 167 87 554 Absorbed by Shields . | . . . . . Regen/Repaired (Parts) 149 | . 48 . 101 . Core Remaining (%) 63 | 100 53 . 36 . Volleys Fired 163 | . 22 29 30 82 Largest 2 | . 2 2 2 2 Hottest 115 | . 100 115 46 81 Shots Fired 274 | . 44 56 60 114 Gun 245 | . 44 56 60 85 Cannon 29 | . . . . 29 Launcher . | . . . . . Special . | . . . . . Kinetic 184 | . 11 6 60 107 Thermal 90 | . 33 50 . 7 Explosive . | . . . . . Electromagnetic . | . . . . . Robot Hit Streak 16 | . 16 12 9 10 Robot Miss Streak 4 | . 3 3 4 3 Penetration Max . | . . . . . Secondary Targets 7 | . 1 2 1 3 Max Gunslinging Chain 1 | . 1 1 1 1 Shots Hit Robots 183 | . 31 26 40 86 Core Hits 78 | . 14 12 13 39 Critical Kills . | . . . . . Critical Parts Destroyed 1 | . . . . 1 Critical Strikes 10 | . 3 5 . 2 Burn 9 | . 3 5 . 1 Destroy 1 | . . . . 1 Melee Attacks . | . . . . . Impact . | . . . . . Slashing . | . . . . . Piercing . | . . . . . Sneak Attacks . | . . . . . Combat Hostiles . | . . . . . Follow-up Attacks . | . . . . . Damage Inflicted 2845 | . 385 333 616 1511 Guns 2310 | . 385 333 616 976 Cannons 535 | . . . . 535 Explosions . | . . . . . Melee . | . . . . . Ramming . | . . . . . Kinetic 2195 | . 85 42 616 1452 Thermal 650 | . 300 291 . 59 Explosive . | . . . . . Electromagnetic . | . . . . . Impact . | . . . . . Slashing . | . . . . . Piercing . | . . . . . Highest Corruption 1 | . . . 1 1 Average Corruption 1 | . . . 1 1 Corruption Purged . | . . . . . Corruption Blocked . | . . . . . Effects 8 | . . . 2 6 Matter Fused 4 | . . . 2 2 Energy Discharges 3 | . . . . 3 Data Loss (minor) 1 | . . . . 1 Overload Shots . | . . . . . Overflow Damage 5 | . . . . 5 Projectiles 5 | . . . . 5 Explosions . | . . . . . Melee . | . . . . . Knockbacks 5 | . . . . 5 Impact . | . . . . . Kinetic 5 | . . . . 5 Secondary . | . . . . . Self-Inflicted Damage . | . . . . . Shots . | . . . . . Rammed . | . . . . . Targets Rammed . | . . . . . Kicked . | . . . . . Crushed . | . . . . . Highest Temperature 421 | . 251 421 51 65 Average Temperature 93 | . 91 174 17 19 Received Heat Transfer 1194 | . 135 81 168 810 Effects 3 | . . 3 . . Shutdowns 1 | . . 1 . . Short Circuit 1 | . . 1 . . Damage (minor) 1 | . . 1 . . Siege Activations . | . . . . . Robots Corrupted . | . . . . . Combat Hostiles . | . . . . . Parts Fried . | . . . . . Impact Corruptions . | . . . . . Robots Melted . | . . . . . Combat Hostiles . | . . . . . Parts Melted 14 | . 4 9 . 1 Heat Transferred 2553 | . 1110 1221 . 222 Parts Sabotaged . | . . . . . Parts Stolen . | . . . . . Parts Stripped . | . . . . . Power Chain Reactions . | . . . . . Alert | -11 -10 -9 -9 -8 ------- Run | Yrd Mat Mat Sto Mat Peak Influence 502 | . 197 190 502 498 Initial 211 | . . . 79 211 Average 262 | . 74 99 336 339 Maximum Alert Level 2 | . . . 2 2 Low Security (%) 33 | 100 100 100 11 . Level 1 50 | . . . 66 77 Level 2 15 | . . . 21 22 Level 3 . | . . . . . Level 4 . | . . . . . Level 5 . | . . . . . High Security . | . . . . . Max Security . | . . . . . Squads Dispatched 18 | . 1 . 9 8 Investigation 11 | . . . 6 5 Extermination . | . . . . . Reinforcement 4 | . 1 . . 3 Assault . | . . . . . Garrison 3 | . . . 3 . Intercept . | . . . . . Searches Triggered . | . . . . . Construction Impeded . | . . . . . Haulers Reinforced . | . . . . . Active Scanning Responses . | . . . . . Cargo Convoy Interrupts . | . . . . . Stealth | -11 -10 -9 -9 -8 --------- Run | Yrd Mat Mat Sto Mat Distress Signals 6 | . . . 2 4 Communications Jammed . | . . . . . Distress Signals . | . . . . . Times Spotted 79 | . 10 11 22 36 Peak Tracking Total 7 | . 5 4 4 7 Tactical Retreats 3 | . . . 1 2 Traps | -11 -10 -9 -9 -8 ------- Run | Yrd Mat Mat Sto Mat Traps Triggered 3 | . . . . 3 Indirectly . | . . . . . Trap Hack Attempts . | . . . . . Triggered . | . . . . . Disarmed 6 | . 6 . . . Reprogrammed . | . . . . . Reused . | . . . . . Traps Extracted . | . . . . . Installed . | . . . . . Triggered . | . . . . . Machines | -11 -10 -9 -9 -8 ---------- Run | Yrd Mat Mat Sto Mat Machines Disabled 2 | . . . 1 1 Max in Single Turn 1 | . . . 1 1 Machines Repaired . | . . . . . Machines Dismantled . | . . . . . Machines Sabotaged . | . . . . . Overloaded Fab Kills . | . . . . . Hacking | -11 -10 -9 -9 -8 --------- Run | Yrd Mat Mat Sto Mat Machines Accessed 20 | . 4 1 12 3 Terminals 14 | . 3 1 7 3 Fabricators . | . . . . . Repair Stations 3 | . 1 . 2 . Recycling Units 2 | . . . 2 . Scanalyzers . | . . . . . Garrison Access 1 | . . . 1 . Total Hacks 87 | . 22 3 52 10 Successful 47 | . 14 2 28 3 Failed 40 | . 8 1 24 7 Catastrophic 6 | . 1 . 5 . Database Lockouts . | . . . . . Manual 9 | . 2 . 7 . Terminals 59 | . 16 3 30 10 Fabricators . | . . . . . Repair Stations 19 | . 6 . 13 . Recycling Units 7 | . . . 7 . Scanalyzers . | . . . . . Garrison Access 2 | . . . 2 . Terminal Hacks 31 | . 10 2 16 3 Record 15 | . 3 2 8 2 Prototype ID Bank 3 | . 1 . 1 1 Open Door 1 | . . . 1 . Branch Access Points 1 | . 1 . . . Alert Level 2 | . 1 . 1 . Locate Traps 3 | . 2 . 1 . Disarm Traps 1 | . 1 . . . Transport Status 1 | . . . 1 . Zone Layout 4 | . 1 . 3 . Fabricator Hacks . | . . . . . Repair Station Hacks 13 | . 4 . 9 . Scan Component 7 | . 2 . 5 . Repair 6 | . 2 . 4 . Recycling Unit Hacks 3 | . . . 3 . Report Inventory 1 | . . . 1 . Retrieve Components 2 | . . . 2 . Scanalyzer . | . . . . . Garrison Access Hacks . | . . . . . Unauthorized Hacks . | . . . . . Terminals . | . . . . . Fabricators . | . . . . . Repair Stations . | . . . . . Recycling Units . | . . . . . Scanalyzers . | . . . . . Garrison Access . | . . . . . Data Cores Recovered . | . . . . . Used . | . . . . . Hacking Detections 18 | . 3 1 11 3 Full Trace Events 16 | . 1 1 11 3 Feedback Events 1 | . . . 1 . Corruption 1 | . . . 1 . Feedback Blocked . | . . . . . Robot Schematics Acquired . | . . . . . Robots Built . | . . . . . Authchips . | . . . . . Time . | . . . . . Total Robot Build Rating . | . . . . . Part Schematics Acquired . | . . . . . Parts Built . | . . . . . Authchips . | . . . . . Time . | . . . . . Total Part Build Rating . | . . . . . Parts Repaired 6 | . 2 . 4 . Time 180 | . 52 . 128 . Parts Recycled . | . . . . . Recycled Matter . | . . . . . Retrieved Matter . | . . . . . Retrieved Components 7 | . . . 7 . Parts Scanalyzed . | . . . . . Part Schematics Acquired . | . . . . . Parts Damaged . | . . . . . Bothacking | -11 -10 -9 -9 -8 ------------ Run | Yrd Mat Mat Sto Mat Used RIF Installer . | . . . . . Robots Hacked . | . . . . . Non-combat . | . . . . . Combat . | . . . . . Robot Hacks Applied . | . . . . . Relay Couplers Released . | . . . . . Fabnet Peak Effective % . | . . . . . Robots Rewired . | . . . . . Allies Hacked . | . . . . . Hacks Repelled . | . . . . . Allies | -11 -10 -9 -9 -8 -------- Run | Yrd Mat Mat Sto Mat Total Allies 10 | . . . 10 . Largest Group 10 | . . . 10 . Highest-Rated Group 88 | . . . 88 . Highest-Rated Ally 16 | . . . 16 . Total Orders . | . . . . . Ally Attacks 98 | . . . 98 . Total Damage 886 | . . . 886 . Kills 17 | . . . 17 . Allies Corrupted . | . . . . . Allies Melted . | . . . . . Intel | -11 -10 -9 -9 -8 ------- Run | Yrd Mat Mat Sto Mat Robot Analysis Total . | . . . . . Derelict Logs Recovered . | . . . . . Drone Launches . | . . . . . Drone Recoveries . | . . . . . Exploration | -11 -10 -9 -9 -8 ------------- Run | Yrd Mat Mat Sto Mat Turns Passed 2486 | 52 422 238 1153 621 Spaces Moved 1058 | 47 191 116 513 191 Core 3 | 1 . . . 2 Treads 2 | . . . . 2 Legs 598 | . . 9 513 76 Wheels 443 | 46 191 107 . 99 Hover . | . . . . . Flight 12 | . . . . 12 Fastest Speed 50 | 50 80 80 120 95 Average Speed 141 | 79 80 87 165 189 Slowest Speed 920 | 80 95 190 190 920 Overloaded Moves . | . . . . . Propulsion Burnouts . | . . . . . Robots Hopped . | . . . . . Cave-ins Triggered . | . . . . . Exploration Rate (%) 29 | 3 40 15 69 20 Regions Visited 4 Branch Regions 1 Pre-discovered Areas . | . . . . . Known Exits Taken . | . . . . . Unknown Exits Taken 4 | 1 1 1 1 . Scrap Searched . | . . . . . Spaces Dug . | . . . . . Terrain Destroyed 4 | . . . . 4 Melee . | . . . . . Projectile 4 | . . . . 4 AOE . | . . . . . Terrain Rammed . | . . . . . Walls Destroyed . | . . . . . Machines Disabled . | . . . . . Actions | -11 -10 -9 -9 -8 --------- Run | Yrd Mat Mat Sto Mat Total 1769 | 61 416 195 759 338 Wait 428 | . 188 36 181 23 Move 1054 | 46 190 115 512 191 Hop . | . . . . . Pick Up 51 | 10 8 3 14 16 Fast Attach 3 | . . 1 2 . Attach 42 | 5 6 6 4 21 Detach . | . . . . . Swap 17 | . 2 4 9 2 Drop 11 | . . 1 7 3 Fire 163 | . 22 29 30 82 Melee . | . . . . . Ram . | . . . . . Kick . | . . . . . Crush . | . . . . . Escape Stasis . | . . . . . Rewire . | . . . . . Trap . | . . . . . Miscellaneous . | . . . . . Route ------- -11/Scrapyard -10/Materials (discovered 3 exits: *Mat / *Min x2) -9/Materials -9/Storage -8/Materials History --------- Turn | Location | Event 16 | -11/Scrapyard | Discovered new exit (range 16) 53 | -11/Scrapyard | Entered Materials 69 | -10/Materials | Identified exit to Mines 310 | -10/Materials | Build established: Mutant 428 | -10/Materials | Repaired Wheel 456 | -10/Materials | Repaired Med. Laser 469 | -10/Materials | Discovered new exit (range 8) 475 | -10/Materials | Entered another Materials area 475 | -9/Materials | Evolved 2 slots: Power x1, Utility x1 614 | -9/Materials | Discovered new exit (range 8) 705 | -9/Materials | Lost 5 parts (2n3w) 713 | -9/Materials | Entered Storage 820 | -9/Storage | Assisted by bots powering up and referring to "LRC-V3" 997 | -9/Storage | Garrison activated, responded to threat 1129 | -9/Storage | Build established: Commander-Mutant 1323 | -9/Storage | Lost 3 parts (1p1u1w) 1323 | -9/Storage | Lost 4 allies 1357 | -9/Storage | Repaired Broken Imp. Ion Engine 1520 | -9/Storage | Core integrity fell below 50% 1647 | -9/Storage | Repaired Aluminum Leg 1648 | -9/Storage | Repaired Hvy. Assault Rifle 1668 | -9/Storage | Build established: Scavenger-Mutant 1674 | -9/Storage | Repaired Aluminum Leg 1782 | -9/Storage | Discovered new exit (range 14) 1866 | -9/Storage | Entered Materials 1866 | -8/Materials | Evolved 2 slots: Propulsion x1, Utility x1 2054 | -8/Materials | Lost 5 parts (1p3n1w) 2120 | -8/Materials | Core integrity fell below 50% 2186 | -8/Materials | Lost 3 parts (1n2w) 2376 | -8/Materials | Core integrity fell below 20% 2400 | -8/Materials | Lost 3 parts (2n1w) 2487 | -8/Materials | Destroyed by Y-45 Defender with Beam Rifle Last Messages --------------- An alarm sounds. ALERT: Alarm triggered, dispatching investigation squad. U-05 Engineer lays Concrete. [Achievement: Party Time] U-05 Engineer lays Concrete. Heat Sink destroyed. U-05 Engineer lays Concrete. Beam Rifle destroyed. System corrupted: Matter fused (-9). Lgt. Ion Engine destroyed. Lgt. Nuclear Core destroyed. S-10 Pest destroyed. Aluminum Leg destroyed. Y-45 Defender destroyed. Acquired 16 matter. ALERT: Hostiles spotted, dispatching reinforcements to Terminal M003. Acquired Lgt. Ion Engine. Acquired Lgt. Treads. Critical hit (Burn: +37). U-05 Engineer builds a Door. Map ----- +----------------------------------------------------+ | | | ####?????????????????????????????????? | | #?????????????????????????????????? | | #?????????????????????????????????? | | "" #?????????????????????????????????? | | "" #?????????????????????????????????? | | "" #?????????????????????????????????? | | #?????????????????????????????????? | | #?????????????????????????????????? | | #?????????????????????????????????? | | ####?????????????????????????????????? | | #########????????????????????????????? | | # #????????????????????????????? | | / #????????????????????????????? | | # #????????????????????????????? | | #########????????????????????????????? | | #???????????????????????????????????? | | #???????????????????????????????????? | | #???????????????????????????????????? | | #?????? ???#????????????????????????? | | #??"""""?? #?????#########??????????? | | ### """""? +?????? ???????????? | | ??? """""? #??????? ????????????? | | ???? """ ?????????# ####+####????? | | ?????? ??????????#!g# #????? | | ??????##/############# g@ #????? | | ####### *%Y [%# #????? | | =u%u==#########????? | | ##+############"##????????????? | | # #?????? ????????????? | | + """" #????? ???????????? | | ######## [""" #???? """ ??????????? | | ???????#="""" #???# """"" #?????????? | | ???????# #???#% """"" #?????????? | | ???????# !#???# """"" +?????????? | | ???????########???# ?????##????????? | | ??????????????????# ????????????????? | | ??????????????????# ?????????????????? | | ??????????????????#??????????????????? | | ?????????????????????????????????????? | | ?????????????????????????????????????? | | ?????????????????????????????????????? | | ?????????????????????????????????????? | | ?????????????????????????????????????? | | ?????????????????????????????????????? | | ?????????????????????????????????????? | | ?????????????????????????????????????? | | ?????????????????????????????????????? | | ?????????????????????????????????????? | | ?????????????????????????????????????? | +----------------------------------------------------+ Best States ------------- Heat Dissipation 41 Energy Generation 19 Energy Capacity 540 Matter Stores 300 Matter Capacity 300 Sight Range 16 Terrain Scan Density 10 Armor Coverage 150 Evasion (%) 55 Targeting Accuracy 12 Recoil Reduction 1 Offensive Hacking 10 Item Schematics ----------------- None Robot Schematics ------------------ None Fabricated ------------ Nothing Alien Tech Used ----------------- None Achievements -------------- Party Time The More The Merrier Challenges ------------ None Game ------ Seed IntegratedCarbideThrower Manual? 0 Play Time 00:47:51 Cumulative 6.7 hours Start 2024.04.16 @ 10:45:20 End 2024.04.16 @ 12:06:26 Sessions 1 Manual Loads 0 Difficulty Rogue Special Mode None Game No. 11 Rogue 11 Adventurer 0 Explorer 0 Win Type - Total 0 Types 0/0/0/0/0/0/0/0/0 Lore% 5 Gallery% 10 Achievement% 12 Wizard Run 0 Options --------- Layout 0 ASCII 0 Keyboard 0 Movement Mouse Keybinds 0 Fullscreen 1 Font 18/SmallcapsGlow Map View 76x50 Zoom Use 0% Tactical HUD 0 Map Filters NONE Filters NONE Steam 1 RUN: a8750819-14d9-4b2c-8fbd-539f237354f9